bitfinex/quotes_SOLUSD_20251218
["timestamp","ask_amount","ask_price","bid_price","bid_amount"]
[1766092085174,7.66479331,118.19,118.14,16.12479331]
[1766092085855,0.82,118.19,118.14,16.12479331]
[1766092086088,0.72,118.18,118.14,9.28]
[1766092086857,0.72,118.18,118.14,16.12479331]
[1766092087057,0.72,118.18,118.14,24.58920776]
[1766092087258,0.72,118.18,118.14,16.12479331]
[1766092087884,0.72,118.18,118.14,9.28]
[1766092088266,0.82,118.19,118.14,16.12479331]
[1766092088468,0.82,118.19,118.14,24.58909914]
[1766092088966,0.1,118.19,118.15,6.84479331]
[1766092089386,0.1,118.19,118.16,6.84479331]
[1766092089694,7.56479331,118.17,118.13,19.71767296]
[1766092089864,0.72,118.17,118.13,19.71767296]
[1766092090261,6.84479331,118.17,118.13,9.28]
[1766092090587,6.84479331,118.17,118.12,6.84479331]
[1766092090588,0.72,118.15,118.12,6.84479331]
[1766092091276,6.84479331,118.18,118.12,6.84479331]
[1766092091470,0.1,118.19,118.12,6.84479331]
[1766092091674,0.72,118.17,118.13,8.80994492]
[1766092091877,0.72,118.17,118.14,6.84479331]
[1766092092089,0.72,118.17,118.14,9.28]
[1766092092473,0.72,118.16,118.14,9.28]
[1766092094406,0.72,118.16,118.12,16.12479331]
[1766092094709,0.7,118.14,118.11,10.43767296]
[1766092096492,0.7,118.14,118.11,17.28246627]
[1766092097511,7.54479331,118.13,118.1,9.28]
[1766092097699,0.7,118.13,118.1,9.28]
[1766092098509,0.7,118.15,118.1,17.74739646]
[1766092098694,0.7,118.15,118.1,24.59218977]
[1766092098907,7.54479331,118.15,118.1,24.59218977]
[1766092099099,30.06367078,118.19,118.13,10.43767296]
[1766092099100,0.8,118.19,118.13,10.43767296]
[1766092099309,0.7,118.18,118.14,16.12479331]
[1766092099497,0.7,118.18,118.14,9.28]
[1766092099811,0.1,118.19,118.17,6.84479331]
[1766092100026,0.1,118.19,118.15,8.80994492]
[1766092100327,0.1,118.19,118.16,6.84479331]
[1766092101214,0.7,118.18,118.14,9.28]
[1766092102322,0.7,118.17,118.14,9.28]
[1766092102526,0.7,118.16,118.14,9.28]
[1766092102721,0.7,118.16,118.13,10.43767296]
[1766092103228,0.7,118.15,118.13,10.43767296]
[1766092103398,6.84479331,118.15,118.12,9.28]
[1766092103604,0.7,118.14,118.12,9.28]
[1766092105730,0.7,118.18,118.12,9.28]
[1766092105932,0.7,118.15,118.12,9.28]
[1766092106137,0.1,118.19,118.12,17.74590505]
[1766092106306,0.8,118.19,118.13,8.80994492]
[1766092106639,0.1,118.19,118.15,6.84479331]
[1766092106830,0.1,118.19,118.16,16.12479331]
[1766092107016,0.1,118.19,118.18,6.84479331]
[1766092107326,8.55691928,118.25,118.21,8.80994492]
[1766092107327,0.1,118.25,118.21,8.80994492]
[1766092107528,0.1,118.25,118.22,16.12479331]
[1766092108511,0.1,118.25,118.22,9.28]
[1766092108716,0.7,118.24,118.22,9.28]
[1766092109034,0.7,118.23,118.17,8.4619488]
[1766092109239,0.7,118.21,118.18,9.28]
[1766092109431,0.7,118.2,118.18,9.28]
[1766092109634,0.7,118.2,118.15,15.65473823]
[1766092109813,7.54479331,118.2,118.16,9.28]
[1766092110139,0.7,118.19,118.16,9.28]
[1766092110822,0.7,118.21,118.16,16.12479331]
[1766092111027,7.54479331,118.2,118.16,19.71767296]
[1766092111214,0.7,118.2,118.16,9.28]
[1766092111631,0.7,118.2,118.16,19.71767296]
[1766092112442,0.7,118.2,118.16,80.81767296]
[1766092114744,0.7,118.2,118.16,89.28076212]
[1766092114947,0.7,118.2,118.16,96.12555543]
[1766092115251,6.84479331,118.2,118.16,80.81767296]
[1766092115465,0.7,118.19,118.16,80.81767296]
[1766092116638,7.54479331,118.22,118.17,6.84479331]
[1766092116823,5.09069368,118.21,118.17,6.84479331]
[1766092117022,5.09069368,118.2,118.17,6.84479331]
[1766092117225,6.84479331,118.21,118.16,96.12545098]
[1766092117454,5.79350867,118.2,118.16,19.71767296]
[1766092117634,5.09350867,118.19,118.16,26.56246627]
[1766092117842,0.7,118.2,118.16,26.56246627]
[1766092118050,5.09221348,118.19,118.16,26.56246627]
[1766092118242,0.7,118.2,118.16,26.56246627]
[1766092118444,5.09374922,118.19,118.16,26.56246627]
[1766092118767,0.7,118.2,118.16,35.02545176]
[1766092118976,31.67992909,118.25,118.17,6.84479331]
[1766092118977,0.7,118.22,118.17,6.84479331]
[1766092119155,5.09298972,118.21,118.17,6.84479331]
[1766092119464,5.09665727,118.2,118.16,35.02545176]
[1766092119665,0.7,118.21,118.16,35.02545176]
[1766092119857,5.09685561,118.2,118.16,35.02545176]
[1766092120030,0.7,118.21,118.16,35.02545176]
[1766092120234,5.09697732,118.2,118.16,35.02545176]
[1766092120436,0.7,118.21,118.16,19.71767296]
[1766092120657,5.80063825,118.2,118.16,26.56246627]
[1766092120844,5.10063825,118.19,118.16,26.56246627]
[1766092121056,0.7,118.2,118.16,26.56246627]
[1766092121371,5.10073556,118.19,118.16,26.56246627]
[1766092121551,0.7,118.2,118.16,26.56246627]
[1766092121752,5.10161861,118.19,118.16,26.56246627]
[1766092121950,0.7,118.2,118.16,26.56246627]
[1766092122143,5.10317577,118.19,118.16,26.56246627]
[1766092122341,0.7,118.2,118.16,26.56246627]
[1766092122564,5.10498462,118.19,118.16,26.56246627]
[1766092122862,0.7,118.2,118.16,26.56246627]
[1766092123067,5.10480063,118.19,118.16,35.02554297]
[1766092123277,0.67,118.23,118.17,6.84479331]
[1766092123437,0.67,118.23,118.18,9.28]
[1766092123438,5.77452435,118.22,118.18,9.28]
[1766092123638,5.10452435,118.21,118.18,9.28]
[1766092123861,5.10452435,118.2,118.18,9.28]
[1766092124166,0.67,118.22,118.18,9.28]
[1766092124368,5.10470692,118.21,118.18,9.28]
[1766092124559,0.67,118.22,118.18,9.28]
[1766092124764,16.18803886,118.21,118.18,9.28]
[1766092124954,0.67,118.19,118.18,9.28]
[1766092125873,0.67,118.2,118.18,9.28]
[1766092130273,16.18582919,118.19,118.16,19.71767296]
[1766092130478,0.67,118.19,118.16,19.71767296]
[1766092132793,0.67,118.21,118.17,0.67]
[1766092133195,0.67,118.21,118.17,11.75379884]
[1766092134412,0.67,118.21,118.16,19.71767296]
[1766092134413,0.67,118.2,118.16,19.71767296]
[1766092134617,0.67,118.2,118.16,28.18076047]
[1766092134901,0.67,118.19,118.16,19.71767296]
[1766092135206,0.67,118.19,118.16,10.43767296]
[1766092136279,11.08379884,118.17,118.12,0.67]
[1766092136499,11.08379884,118.16,118.12,0.67]
[1766092137001,11.08379884,118.17,118.12,9.13589702]
[1766092137202,8.45981205,118.21,118.14,11.08379884]
[1766092137404,11.08379884,118.19,118.15,0.67]
[1766092139814,17.26946611,118.21,118.15,0.67]
[1766092139988,11.08379884,118.19,118.15,0.67]
[1766092140188,11.08379884,118.18,118.14,0.67]
[1766092140419,11.08379884,118.19,118.14,0.67]
[1766092140614,11.08379884,118.18,118.14,0.67]
[1766092141156,11.08379884,118.15,118.1,8.80994492]
[1766092141421,11.08379884,118.11,118.06,0.67]
[1766092141592,10.43767296,118.14,118.08,11.08379884]
[1766092141919,21.5214718,118.14,118.09,0.71]
[1766092142126,11.08379884,118.12,118.06,20.36379884]
[1766092142422,11.08379884,118.1,118.07,0.71]
[1766092143287,11.08379884,118.11,118.07,0.71]
[1766092144416,11.08379884,118.1,118.06,9.28]
[1766092144597,11.08379884,118.1,118.06,9.99]
[1766092144792,11.08379884,118.11,118.06,9.99]
[1766092146119,11.08379884,118.1,118.06,9.99]
[1766092146693,11.08379884,118.11,118.06,9.99]
[1766092147097,11.08379884,118.07,118.04,0.71]
[1766092147802,10.43767296,118.09,118.04,0.71]
[1766092148006,21.5214718,118.09,118.04,0.71]
[1766092150903,11.08379884,118.09,118.04,0.71]
[1766092151305,18.90507602,118.1,118.04,0.71]
[1766092151306,11.08379884,118.08,118.04,0.71]
[1766092151508,18.90507602,118.1,118.04,0.71]
[1766092151803,11.08379884,118.08,118.04,0.71]
[1766092152214,11.08379884,118.09,118.04,0.71]
[1766092152411,11.08379884,118.08,118.04,0.71]
[1766092152804,21.5214718,118.1,118.05,0.7]
[1766092153012,11.08379884,118.1,118.06,0.7]
[1766092154319,11.08379884,118.09,118.06,0.7]
[1766092154629,11.08379884,118.1,118.06,0.7]
[1766092154832,21.5214718,118.12,118.07,0.7]
[1766092155015,21.5214718,118.12,118.08,0.7]
[1766092155418,11.08379884,118.11,118.07,61.8]
[1766092155814,11.08379884,118.1,118.07,61.8]
[1766092156026,11.08379884,118.11,118.07,61.8]
[1766092158337,10.43767296,118.12,118.07,61.8]
[1766092158510,11.08379884,118.11,118.07,61.8]
[1766092159846,11.08379884,118.08,118.07,61.1]
[1766092160141,11.08379884,118.08,118.05,61.1]
[1766092160306,11.08379884,118.07,118.04,0.7]
[1766092160905,11.08379884,118.06,118.04,0.7]
[1766092161127,11.08379884,118.07,118.04,0.7]
[1766092161533,11.08379884,118.06,118.03,9.48]
[1766092161716,11.08379884,118.05,118.03,0.2]
[1766092161918,11.08379884,118.04,118.02,0.2]
[1766092162145,11.08379884,118.03,118.0,0.7]
[1766092162435,11.08379884,118.04,118.0,0.7]
[1766092163746,20.36379884,118.05,118.0,0.7]
[1766092165227,20.36379884,118.05,118.0,11.08379884]
[1766092165434,20.36379884,118.05,118.01,0.7]
[1766092165638,9.28,118.05,118.02,0.7]
[1766092165848,11.08379884,118.09,118.04,0.7]
[1766092167051,11.08379884,118.08,118.04,0.7]
[1766092167218,11.08379884,118.05,118.02,0.7]
[1766092167413,11.08379884,118.05,118.0,81.51767296]
[1766092167621,11.08379884,118.04,118.0,71.08]
[1766092168938,11.08379884,118.02,117.98,72.23767296]
[1766092169158,9.28,118.04,117.98,11.13767296]
[1766092169347,11.08379884,118.02,117.98,11.13767296]
[1766092170164,11.08379884,118.01,117.98,0.7]
[1766092170540,11.08379884,118.01,117.97,61.1]
[1766092171363,11.08379884,118.0,117.97,61.1]
[1766092174079,11.08379884,118.0,117.96,0.7]
[1766092174878,8.47314014,118.02,117.96,0.7]
[1766092175066,11.08379884,118.0,117.96,0.7]
[1766092176375,11.08379884,118.0,117.96,61.8]
[1766092177186,11.08379884,118.0,117.97,0.7]
[1766092177688,11.08379884,117.99,117.93,21.5214718]
[1766092177857,8.47457917,118.0,117.95,0.7]
[1766092178058,7.55547052,117.98,117.95,0.7]
[1766092178956,11.08379884,117.99,117.95,0.7]
[1766092180586,21.18511527,118.01,117.97,0.7]
[1766092180587,11.08379884,118.01,117.97,0.7]
[1766092181384,5.06401399,118.0,117.97,0.7]
[1766092181578,19.5578037,118.01,117.97,0.7]
[1766092181891,5.06373003,118.0,117.97,0.7]
[1766092182059,11.08379884,118.01,117.97,0.7]
[1766092182262,19.55550334,118.04,117.99,0.7]
[1766092182488,20.20550334,118.04,117.99,0.7]
[1766092182698,11.76379884,118.04,117.99,61.8]
[1766092182862,11.76379884,118.04,118.0,0.65]
[1766092183477,7.52305213,118.04,118.0,0.65]
[1766092185172,27.24072509,118.05,118.01,0.65]
[1766092188794,27.24072509,118.05,118.01,61.75]
[1766092188970,20.39767296,118.05,118.01,61.75]
[1766092189169,20.39767296,118.05,118.01,68.59305213]
[1766092189562,42.33872845,118.1,118.01,68.59305213]
[1766092189563,43.85332215,118.13,118.03,0.65]
[1766092189798,6.84305213,118.09,118.05,0.65]
[1766092191016,7.52305213,118.09,118.05,0.65]
[1766092191418,6.84305213,118.07,118.01,61.1]
[1766092191588,7.52305213,118.06,118.01,7.49305213]
[1766092191796,7.52305213,118.06,118.02,0.65]
[1766092192282,16.80305213,118.07,118.03,0.65]
[1766092192788,6.84305213,118.06,118.03,0.65]
[1766092192982,7.52305213,118.06,118.02,0.65]
[1766092193989,16.12305213,118.07,118.02,6.84305213]
[1766092194307,5.17615082,118.06,118.03,0.65]
[1766092194477,5.17615082,118.05,118.03,0.65]
[1766092194678,16.80305213,118.07,118.03,0.65]
[1766092194990,5.17697689,118.06,118.03,0.65]
[1766092195305,5.17697689,118.05,118.03,0.65]
[1766092195471,16.80305213,118.07,118.03,0.65]
[1766092195670,5.17845257,118.06,118.03,0.65]
[1766092195899,5.17845257,118.05,118.03,0.65]
[1766092196089,16.80305213,118.07,118.03,0.65]
[1766092196398,5.17879658,118.06,118.03,0.65]
[1766092196601,5.17879658,118.05,118.03,0.65]
[1766092196894,16.80305213,118.07,118.03,0.65]
[1766092197105,5.17931111,118.06,118.03,6.84305213]
[1766092197282,5.17931111,118.06,118.01,8.47332417]
[1766092197283,6.84305213,118.09,118.04,6.84305213]
[1766092197481,5.17987476,118.08,118.05,0.65]
[1766092197681,0.68,118.09,118.05,0.65]
[1766092197888,5.18133899,118.08,118.05,0.65]
[1766092198090,0.68,118.09,118.05,0.65]
[1766092198285,5.18166951,118.08,118.05,0.65]
[1766092198607,0.68,118.09,118.05,0.65]
[1766092198811,5.1827794,118.08,118.05,0.65]
[1766092199021,0.68,118.09,118.05,0.65]
[1766092199184,5.18236294,118.08,118.05,0.65]
[1766092199384,0.68,118.09,118.05,0.65]
[1766092200508,5.18169082,118.08,118.05,0.65]
[1766092200714,7.52305213,118.09,118.05,0.65]
[1766092200888,16.12305213,118.1,118.06,0.65]
[1766092201091,5.18225572,118.09,118.06,0.65]
[1766092201405,7.52305213,118.07,118.03,61.75]
[1766092201588,18.90462754,118.11,118.04,6.84305213]
[1766092201908,21.99627657,118.1,118.06,0.7]
[1766092202113,5.18322444,118.09,118.06,0.7]
[1766092202286,5.18322444,118.08,118.06,0.7]
[1766092202488,16.81305213,118.1,118.06,0.7]
[1766092202805,5.1844275,118.09,118.06,0.7]
[1766092203110,5.1844275,118.08,118.06,0.7]
[1766092203402,5.1844275,118.08,118.05,61.8]
[1766092204613,8.74613807,118.08,118.05,61.1]
[1766092204817,5.18350967,118.07,118.06,0.7]
[1766092204985,9.28,118.1,118.06,0.7]
[1766092205186,5.18344283,118.09,118.07,0.7]
[1766092205421,3.56171057,118.11,118.07,0.7]
[1766092205629,5.18276272,118.1,118.07,0.7]
[1766092205817,5.18276272,118.09,118.07,0.7]
[1766092206122,3.56171057,118.11,118.07,0.7]
[1766092206330,3.56171057,118.09,118.06,61.1]
[1766092206533,5.18344952,118.08,118.06,61.1]
[1766092206829,3.56171057,118.09,118.06,61.1]
[1766092207030,5.18241938,118.08,118.06,61.1]
[1766092207218,3.56171057,118.09,118.06,61.1]
[1766092207423,5.18159717,118.08,118.06,61.1]
[1766092207612,3.56171057,118.09,118.06,61.1]
[1766092207813,5.18127233,118.08,118.06,61.1]
[1766092208114,3.56171057,118.09,118.06,61.1]
[1766092208313,5.18127367,118.08,118.06,61.1]
[1766092208503,3.56171057,118.09,118.06,61.1]
[1766092208695,5.18022539,118.08,118.06,61.1]
[1766092208909,3.56171057,118.09,118.06,61.1]
[1766092209209,5.18044383,118.08,118.06,61.1]
[1766092209409,12.02993659,118.09,118.05,61.8]
[1766092209628,5.17999248,118.08,118.05,61.8]
[1766092209826,3.56171057,118.09,118.05,61.8]
[1766092210133,5.18164425,118.08,118.05,61.8]
[1766092210340,2.87171057,118.1,118.06,0.7]
[1766092210630,8.05144386,118.09,118.06,0.7]
[1766092210835,5.17973329,118.08,118.06,0.7]
[1766092211136,3.56171057,118.1,118.06,0.7]
[1766092211332,5.18049983,118.09,118.06,0.7]
[1766092211546,5.18049983,118.08,118.06,0.7]
[1766092211741,3.56171057,118.1,118.06,0.7]
[1766092211927,5.18018653,118.09,118.06,0.7]
[1766092212130,0.79,118.12,118.07,14.00938353]
[1766092212340,0.69,118.19,118.12,0.64]
[1766092212646,2.87171057,118.15,118.11,9.28]
[1766092212815,0.66,118.12,118.09,10.43767296]
[1766092213153,3.53171057,118.12,118.08,9.92]
[1766092213513,3.53171057,118.11,118.08,9.28]
[1766092214429,0.66,118.11,118.08,9.28]
[1766092217166,0.66,118.13,118.09,3.51171057]
[1766092217466,0.66,118.13,118.09,0.64]
[1766092218461,3.53171057,118.11,118.08,61.1]
[1766092219034,0.66,118.11,118.08,61.1]
[1766092220558,0.66,118.1,118.08,61.1]
[1766092220761,0.66,118.08,118.06,60.38]
[1766092221067,3.53171057,118.08,118.06,60.38]
[1766092221429,0.66,118.07,118.04,0.7]
[1766092221630,0.66,118.05,118.02,9.98]
[1766092221860,2.87171057,118.05,118.0,0.7]
[1766092222037,0.66,118.04,118.0,9.98]
[1766092223135,3.53171057,118.04,118.0,9.98]
[1766092223328,7.50258625,118.04,118.0,9.98]
[1766092223529,15.97437684,118.04,118.0,0.7]
[1766092223729,7.50258625,118.04,118.0,0.7]
[1766092224142,5.22634287,118.03,118.0,0.7]
[1766092224351,7.50258625,118.03,117.98,9.98]
[1766092224565,5.22653823,118.02,117.98,9.98]
[1766092224738,5.22580868,118.01,117.98,9.98]
[1766092225059,7.50258625,118.02,117.98,9.98]
[1766092225266,5.22662629,118.01,117.98,9.98]
[1766092225574,7.50258625,118.02,117.98,9.98]
[1766092225777,5.22877132,118.01,117.98,9.98]
[1766092225941,7.50258625,118.02,117.98,9.98]
[1766092226142,5.22994046,118.01,117.98,9.98]
[1766092226362,7.50258625,118.02,117.98,9.98]
[1766092226676,5.23109336,118.01,117.98,9.98]
[1766092226842,7.50258625,118.02,117.98,9.98]
[1766092227165,5.23295009,118.01,117.98,9.98]
[1766092227343,7.50258625,118.02,117.98,9.98]
[1766092227543,5.23120297,118.01,117.98,9.98]
[1766092227766,7.50258625,118.02,117.98,9.98]
[1766092228068,5.23101532,118.01,117.98,9.98]
[1766092228268,7.50258625,118.02,117.98,9.98]
[1766092228447,8.47200342,118.04,117.96,0.7]
[1766092228448,7.50258625,118.0,117.96,0.7]
[1766092228774,5.23024742,117.99,117.97,0.7]
[1766092229663,0.66,118.0,117.97,0.7]
[1766092231864,6.84258625,118.01,117.97,0.7]
[1766092232061,5.22608654,118.0,117.97,0.7]
[1766092232257,6.84258625,118.02,117.97,61.08]
[1766092232566,5.8859797,118.01,117.97,61.08]
[1766092232766,6.84258625,118.02,117.98,0.7]
[1766092233072,5.22527135,118.01,117.98,0.7]
[1766092233264,7.50258625,118.02,117.98,0.7]
[1766092233451,5.22058558,118.01,117.98,0.7]
[1766092233658,0.66,118.01,117.98,0.7]
[1766092235981,6.84258625,118.02,117.98,0.7]
[1766092236272,6.84258625,118.02,117.98,61.08]
[1766092236273,7.50258625,118.02,117.98,61.08]
[1766092236474,15.97574364,118.02,117.98,61.08]
[1766092236673,0.66,118.01,117.98,61.08]
[1766092238079,6.84258625,118.02,117.98,61.08]
[1766092238285,7.50258625,118.02,117.98,61.08]
[1766092238976,0.66,118.01,117.98,61.08]
[1766092239885,7.50258625,118.01,117.98,61.08]
[1766092240066,8.47457627,118.0,117.98,0.7]
[1766092240265,0.66,117.99,117.96,70.36]
[1766092240588,0.66,117.96,117.94,9.3]
[1766092240876,0.66,117.98,117.94,10.0]
[1766092241071,7.50258625,117.98,117.94,10.0]
[1766092241375,0.66,117.97,117.94,10.0]
[1766092241974,7.50258625,117.97,117.94,10.0]
[1766092242871,6.84258625,117.98,117.94,9.96]
[1766092243067,7.50258625,117.98,117.94,9.96]
[1766092243462,5.15497058,117.98,117.94,9.96]
[1766092244382,4.49497058,117.96,117.94,9.3]
[1766092244674,4.49497058,117.96,117.89,0.66]
[1766092244675,9.6971921,117.95,117.89,0.66]
[1766092244877,4.49497058,117.92,117.88,0.86]
[1766092245061,4.49497058,117.9,117.88,0.2]
[1766092245260,9.28,117.92,117.86,0.2]
[1766092245453,4.49497058,117.89,117.86,0.2]
[1766092246678,13.63774888,117.89,117.86,0.2]
[1766092247084,4.49497058,117.88,117.86,0.2]
[1766092247383,5.15497058,117.87,117.83,0.86]
[1766092247875,0.66,117.87,117.83,0.86]
[1766092248256,5.15497058,117.87,117.83,0.86]
[1766092248783,0.66,117.87,117.83,0.86]
[1766092249172,4.49497058,117.86,117.83,0.86]
[1766092249371,13.63899991,117.87,117.83,0.86]
[1766092249566,4.49497058,117.85,117.83,0.2]
[1766092249768,5.15497058,117.85,117.83,0.2]
[1766092249966,4.49497058,117.84,117.81,0.66]
[1766092250169,4.49497058,117.84,117.8,0.66]
[1766092250170,5.15497058,117.84,117.8,0.66]
[1766092250586,4.49497058,117.83,117.79,0.2]
[1766092250773,4.49497058,117.83,117.79,0.86]
[1766092251274,5.15497058,117.84,117.8,0.66]
[1766092252861,4.49497058,117.86,117.82,0.66]
[1766092253061,4.49497058,117.85,117.82,0.66]
[1766092256564,4.49497058,117.86,117.82,0.66]
[1766092258369,5.15497058,117.87,117.82,0.66]
[1766092258689,42.40687287,117.91,117.82,0.66]
[1766092258690,0.66,117.91,117.84,0.66]
[1766092258887,10.43767296,117.9,117.86,0.66]
[1766092259075,4.49497058,117.89,117.86,0.66]
[1766092259275,4.49497058,117.88,117.84,0.66]
[1766092259478,5.15497058,117.88,117.84,0.66]
[1766092259894,5.15497058,117.87,117.82,5.15497058]
[1766092260280,5.15497058,117.86,117.82,0.66]
[1766092260796,5.15497058,117.88,117.83,0.66]
[1766092260980,13.79497058,117.89,117.84,0.66]
[1766092261492,4.49497058,117.88,117.84,0.66]
[1766092261706,18.46249508,117.89,117.8,10.43767296]
[1766092261707,0.68,117.84,117.8,10.43767296]
[1766092261871,5.17497058,117.84,117.79,0.92]
[1766092262078,4.49497058,117.82,117.79,0.92]
[1766092262275,0.68,117.83,117.79,0.92]
[1766092262276,5.17497058,117.83,117.79,0.92]
[1766092262775,4.49497058,117.82,117.79,0.92]
[1766092263003,0.68,117.83,117.79,0.92]
[1766092263197,4.49497058,117.81,117.79,0.2]
[1766092263383,9.16792702,117.82,117.77,0.2]
[1766092263384,11.16414325,117.8,117.77,0.2]
[1766092263586,11.16414325,117.78,117.77,0.2]
[1766092264101,11.16414325,117.78,117.76,0.2]
[1766092264277,11.16414325,117.77,117.76,0.2]
[1766092265003,11.16414325,117.78,117.76,0.2]
[1766092265190,19.86761788,117.83,117.77,0.72]
[1766092265497,11.16414325,117.81,117.77,0.72]
[1766092266888,18.40767587,117.82,117.76,0.2]
[1766092266889,11.78414325,117.79,117.76,0.2]
[1766092267403,18.40876929,117.81,117.76,0.92]
[1766092267578,11.78414325,117.8,117.76,0.92]
[1766092268401,11.78414325,117.8,117.76,0.2]
[1766092268576,11.16414325,117.79,117.76,0.2]
[1766092268775,11.16414325,117.78,117.76,0.2]
[1766092268977,11.16414325,117.79,117.76,0.2]
[1766092269277,9.10913603,117.8,117.76,0.2]
[1766092269477,11.16414325,117.79,117.76,0.2]
[1766092270104,11.16414325,117.82,117.77,0.72]
[1766092270290,11.16414325,117.82,117.77,11.88414325]
[1766092270486,11.16414325,117.81,117.77,0.72]
[1766092271595,11.78414325,117.82,117.77,0.72]
[1766092271803,11.16414325,117.81,117.77,0.72]
[1766092272002,9.10775011,117.82,117.77,0.72]
[1766092272206,0.62,117.82,117.77,0.72]
[1766092272378,11.16414325,117.81,117.77,0.72]
[1766092272581,11.78414325,117.82,117.77,0.72]
[1766092272922,20.27173545,117.82,117.77,0.72]
[1766092274006,20.46414325,117.83,117.78,11.16414325]
[1766092274191,9.3,117.83,117.79,0.69]
[1766092274686,28.95103809,117.83,117.79,0.69]
[1766092276099,11.16414325,117.82,117.79,0.69]
[1766092276406,11.16414325,117.82,117.78,0.69]
[1766092277104,9.3,117.83,117.8,0.69]
[1766092277608,8.48498405,117.86,117.82,0.69]
[1766092277825,21.08414325,117.87,117.83,0.69]
[1766092277985,5.17365738,117.86,117.83,0.69]
[1766092278298,21.08414325,117.87,117.83,0.69]
[1766092278480,18.40396529,117.87,117.83,0.69]
[1766092278680,0.62,117.9,117.83,0.69]
[1766092278983,16.96348981,117.89,117.84,0.69]
[1766092279308,11.78414325,117.86,117.81,0.69]
[1766092279516,16.34943272,117.85,117.81,0.69]
[1766092279698,11.78414325,117.86,117.81,0.69]
[1766092280011,20.26880743,117.86,117.81,0.69]
[1766092280436,17.78416496,117.87,117.82,0.69]
[1766092280579,5.19165342,117.86,117.82,0.69]
[1766092280778,18.40416496,117.87,117.82,0.69]
[1766092280983,11.16414325,117.86,117.82,0.69]
[1766092282386,9.92,117.87,117.82,0.69]
[1766092282715,5.21676989,117.86,117.82,0.69]
[1766092282923,29.56839971,117.87,117.82,11.16414325]
[1766092283215,5.21844575,117.86,117.83,0.69]
[1766092283418,5.22959471,117.85,117.83,0.69]
[1766092283622,9.3,117.87,117.84,0.69]
[1766092283903,11.14767296,117.89,117.85,0.69]
[1766092284303,11.14767296,117.89,117.84,4.50345298]
[1766092284501,0.71,117.88,117.84,5.19345298]
[1766092285622,0.71,117.88,117.84,11.83727069]
[1766092286800,0.71,117.92,117.87,11.83727069]
[1766092286997,11.34727069,117.93,117.88,11.83727069]
[1766092286998,9.5,117.93,117.88,11.83727069]
[1766092287298,10.21,117.93,117.89,11.14727069]
[1766092287517,0.2,117.93,117.9,0.69]
[1766092287820,0.71,117.92,117.88,11.14727069]
[1766092288198,0.71,117.92,117.88,11.83727069]
[1766092288507,0.2,117.93,117.88,11.14727069]
[1766092288713,0.2,117.93,117.9,11.83727069]
[1766092289920,0.2,117.93,117.9,0.69]
[1766092290322,0.91,117.93,117.89,11.14727069]
[1766092290522,0.91,117.93,117.89,11.83727069]
[1766092290896,0.2,117.93,117.9,11.83727069]
[1766092291707,0.2,117.93,117.9,0.69]
[1766092292502,0.2,117.93,117.88,19.73767296]
[1766092292802,0.91,117.93,117.89,0.69]
[1766092294225,0.91,117.93,117.89,61.79]
[1766092295700,0.91,117.93,117.89,72.93727069]
[1766092295906,5.13834611,117.92,117.89,72.93727069]
[1766092296107,0.91,117.93,117.89,72.93727069]
[1766092296836,0.91,117.93,117.9,11.14727069]
[1766092297909,0.91,117.93,117.89,72.93727069]
[1766092300256,0.2,117.93,117.91,11.83727069]